bitfinex-derivatives/quotes_SOLF0:USTF0_20260310
["timestamp","ask_amount","ask_price","bid_price","bid_amount"]
[1773183155946,3.50076576,85.58,85.546,5.19953408]
[1773183156336,3.50076576,85.58,85.545,10.52]
[1773183157447,10.516,85.578,85.545,10.52]
[1773183157942,10.516,85.578,85.538,10.52]
[1773183158345,10.516,85.578,85.538,15.71809604]
[1773183163653,10.516,85.578,85.541,10.52]
[1773183165652,10.516,85.578,85.541,15.71838834]
[1773183168554,10.516,85.578,85.542,5.1956829]
[1773183170052,3.49623803,85.58,85.545,10.52]
[1773183170252,3.49623803,85.58,85.545,15.7156829]
[1773183171455,14.01123803,85.58,85.545,15.7156829]
[1773183176458,14.01123803,85.58,85.545,5.1956829]
[1773183180263,10.516,85.574,85.545,5.1956829]
[1773183181565,21.6616267,85.613,85.532,5.20338892]
[1773183181566,3.49623803,85.57,85.532,5.20338892]
[1773183181762,3.49623803,85.56,85.511,5.20338892]
[1773183182868,3.49623803,85.58,85.53,3.49623803]
[1773183183063,3.49623803,85.59,85.541,5.20343468]
[1773183183268,10.514,85.589,85.541,5.20343468]
[1773183183671,10.514,85.589,85.553,5.20343468]
[1773183184259,10.515,85.582,85.553,5.20343468]
[1773183184467,3.49623803,85.58,85.531,5.20397618]
[1773183185372,10.516,85.575,85.536,5.20397618]
[1773183186575,3.49623803,85.57,85.536,5.20397618]
[1773183187866,10.517,85.568,85.536,5.20397618]
[1773183188064,21.024,85.612,85.536,5.20397618]
[1773183188065,3.49623803,85.58,85.537,5.17738173]
[1773183188567,3.49623803,85.6,85.553,5.17034129]
[1773183189072,3.49623803,85.61,85.553,5.17034129]
[1773183189573,10.512,85.606,85.56,10.518]
[1773183189773,3.49623803,85.6,85.561,5.17034129]
[1773183191065,10.513,85.599,85.561,5.17034129]
[1773183195969,3.49623803,85.59,85.552,5.17813257]
[1773183199677,10.515,85.586,85.544,10.52]
[1773183199876,3.49623803,85.58,85.544,5.17578726]
[1773183200272,3.49623803,85.58,85.489,29.17301758]
[1773183200273,35.08,85.612,85.551,5.17939887]
[1773183200579,3.49623803,85.58,85.531,5.17939887]
[1773183200772,10.517,85.572,85.537,10.521]
[1773183200973,3.49623803,85.58,85.537,10.521]
[1773183201180,3.49623803,85.57,85.531,5.17939887]
[1773183202176,3.49623803,85.58,85.534,5.17939887]
[1773183203081,163.459,85.644,85.509,300.00221047]
[1773183203082,3.49623803,85.56,85.511,5.17760702]
[1773183203281,10.518,85.558,85.516,10.523]
[1773183203476,3.49623803,85.55,85.511,5.17760702]
[1773183203779,3.49623803,85.55,85.514,5.17760702]
[1773183203975,3.49623803,85.56,85.514,5.17760702]
[1773183204383,3.49623803,85.55,85.514,5.17760702]
[1773183205476,3.49623803,85.55,85.515,10.523]
[1773183205881,3.49623803,85.55,85.516,5.1800716]
[1773183206082,3.49623803,85.55,85.475,42.90029171]
[1773183206083,3.49623803,85.57,85.519,5.1800716]
[1773183206386,3.49623803,85.58,85.531,5.1831225]
[1773183207084,3.49623803,85.58,85.533,5.1831225]
[1773183207388,3.49623803,85.59,85.533,5.1831225]
[1773183208488,10.515,85.586,85.543,5.1804352]
[1773183209490,3.49623803,85.58,85.543,5.1804352]
[1773183216191,10.515,85.586,85.546,5.22496052]
[1773183216398,3.49623803,85.58,85.546,5.22496052]
[1773183218499,3.49623803,85.58,85.548,5.23805929]
[1773183220798,3.49623803,85.58,85.513,21.84329171]
[1773183220799,10.519,85.552,85.506,12.48723742]
[1773183220998,3.49623803,85.53,85.506,12.48723742]
[1773183221203,3.49623803,85.54,85.506,12.48723742]
[1773183222904,7.65440153,85.566,85.506,12.48723742]
[1773183223200,3.49623803,85.54,85.506,12.48723742]
[1773183223903,3.49623803,85.53,85.506,12.48723742]
[1773183224697,3.49623803,85.54,85.506,12.48723742]
[1773183225801,3.49952419,85.54,85.447,21.84329171]
[1773183226003,3.49952419,85.47,85.441,12.33158489]
[1773183226200,3.49952419,85.46,85.441,12.33158489]
[1773183227504,3.49952419,85.46,85.419,12.33505165]
[1773183227706,3.49952419,85.45,85.419,12.33505165]
[1773183228399,3.49952419,85.46,85.419,12.33505165]
[1773183229602,3.49952419,85.45,85.419,12.33505165]
[1773183230104,3.49952419,85.46,85.419,12.33505165]
[1773183232302,3.49952419,85.48,85.43,3.49952419]
[1773183232509,3.49952419,85.48,85.431,12.2535056]
[1773183233411,3.49952419,85.48,85.432,12.2535056]
[1773183233804,10.526,85.492,85.432,12.2535056]
[1773183234008,3.49952419,85.47,85.432,12.2535056]
[1773183234609,3.49952419,85.48,85.434,12.25971021]
[1773183236308,3.49952419,85.48,85.435,10.533]
[1773183236607,3.49952419,85.48,85.436,12.26962401]
[1773183237205,3.49952419,85.48,85.437,10.533]
[1773183237505,3.49952419,85.48,85.438,12.26962401]
[1773183238006,3.49952419,85.48,85.442,12.26962401]
[1773183240712,21.042,85.537,85.442,12.26962401]
[1773183240713,3.49952419,85.49,85.444,10.532]
[1773183240915,3.49952419,85.49,85.445,12.2713724]
[1773183241613,3.49952419,85.48,85.445,12.2713724]
[1773183242618,3.49952419,85.48,85.443,10.532]
[1773183242816,3.49952419,85.48,85.444,12.27481512]
[1773183243314,10.525,85.501,85.444,12.27481512]
[1773183243315,3.49952419,85.5,85.444,12.27481512]
[1773183243912,3.49952419,85.51,85.461,12.27481512]
[1773183244106,3.49952419,85.52,85.461,12.27481512]
[1773183244518,3.49952419,85.51,85.468,12.30946443]
[1773183245417,3.49952419,85.5,85.468,12.30946443]
[1773183246516,3.49952419,85.51,85.468,12.30946443]
[1773183250012,3.49952419,85.5,85.457,12.30314612]
[1773183250212,3.49952419,85.49,85.445,12.30314612]
[1773183252420,3.49952419,85.48,85.445,12.30314612]
[1773183252817,3.49952419,85.51,85.461,12.31508264]
[1773183254318,10.524,85.509,85.461,22.84508264]
[1773183254522,10.524,85.509,85.462,12.31975669]
[1773183255422,3.49952419,85.5,85.462,12.31975669]
[1773183255725,3.49952419,85.49,85.462,12.31975669]
[1773183260925,3.49952419,85.5,85.465,12.34254629]
[1773183261121,3.49952419,85.49,85.465,12.34254629]
[1773183262427,21.043,85.534,85.465,12.34254629]
[1773183262428,3.49952419,85.5,85.465,12.34254629]
[1773183262628,8.86260269,85.531,85.465,12.34254629]
[1773183262830,3.49952419,85.51,85.465,12.34254629]
[1773183263131,10.524,85.509,85.467,10.529]
[1773183263332,3.49952419,85.51,85.468,12.34752526]
[1773183263731,14.02352419,85.51,85.468,12.34752526]
[1773183265729,3.49952419,85.51,85.468,12.34752526]
[1773183266630,3.49952419,85.51,85.47,10.529]
[1773183266931,3.49952419,85.51,85.471,12.34723943]
[1773183268023,10.524,85.509,85.471,12.34723943]
[1773183268228,8.93975418,85.508,85.471,12.34723943]
[1773183268425,8.93975418,85.507,85.471,12.34723943]
[1773183268630,8.93975418,85.506,85.471,12.34723943]
[1773183268835,3.49952419,85.51,85.471,12.34723943]
[1773183269136,8.9402107,85.509,85.471,12.34723943]
[1773183269332,10.525,85.505,85.471,12.34723943]
[1773183269533,8.9402107,85.504,85.471,12.34723943]
[1773183269832,10.525,85.505,85.471,12.34723943]
[1773183270135,8.95056463,85.504,85.471,12.34723943]
[1773183270434,8.95056463,85.503,85.471,12.34723943]
[1773183270633,10.525,85.505,85.471,12.34723943]
[1773183270829,8.9507191,85.504,85.471,12.34723943]
[1773183271031,8.9507191,85.503,85.471,12.34723943]
[1773183271234,10.525,85.505,85.471,12.34723943]
[1773183271431,8.95040176,85.504,85.471,12.34723943]
[1773183271729,10.525,85.505,85.471,12.34723943]
[1773183271926,8.95040227,85.504,85.471,12.34723943]
[1773183272129,8.95040227,85.503,85.471,12.34723943]
[1773183272335,10.525,85.505,85.471,12.34723943]
[1773183272535,10.525,85.502,85.471,12.34723943]
[1773183276232,8.96153746,85.501,85.471,12.34723943]
[1773183276536,10.525,85.502,85.471,12.34723943]
[1773183276734,3.49952419,85.5,85.471,12.34723943]
[1773183279036,10.526,85.498,85.471,12.34723943]
[1773183281327,3.49952419,85.5,85.471,12.34723943]
[1773183287636,3.50219135,85.5,85.471,12.34723943]
[1773183290039,10.88124958,85.528,85.471,12.34723943]
[1773183290238,3.50219135,85.51,85.471,12.34723943]
[1773183290441,8.7515878,85.509,85.471,12.34723943]
[1773183290643,3.50219135,85.51,85.471,12.34723943]
[1773183290945,8.75106958,85.509,85.471,12.34723943]
[1773183291242,8.75166566,85.508,85.471,12.34723943]
[1773183291443,8.75166566,85.507,85.471,12.34723943]
[1773183291636,8.75166566,85.506,85.471,12.34723943]
[1773183291839,8.75166566,85.505,85.471,12.34723943]
[1773183292043,10.524,85.508,85.471,12.34723943]
[1773183292244,8.75155391,85.507,85.471,12.34723943]
[1773183292440,8.75155391,85.506,85.471,12.34723943]
[1773183292646,3.50219135,85.5,85.471,12.34723943]
[1773183292943,8.7517457,85.499,85.471,12.34723943]
[1773183293137,3.50219135,85.5,85.471,12.34723943]
[1773183293334,8.75191225,85.499,85.471,12.34723943]
[1773183293545,3.50219135,85.5,85.471,12.34723943]
[1773183293842,8.75188036,85.499,85.471,12.34723943]
[1773183294042,3.50219135,85.5,85.471,12.34723943]
[1773183294244,3.50219135,85.49,85.46,12.27986479]
[1773183297446,8.75551698,85.489,85.46,12.27986479]
[1773183297643,3.50219135,85.49,85.46,12.27986479]
[1773183297846,8.75551698,85.489,85.46,12.27986479]
[1773183298147,3.50219135,85.49,85.46,12.27986479]
[1773183298345,8.75497726,85.489,85.46,12.27986479]
[1773183298545,3.50219135,85.49,85.46,12.27986479]
[1773183298748,8.75497726,85.489,85.46,12.27986479]
[1773183298949,3.50219135,85.49,85.46,12.27986479]
[1773183300846,3.50219135,85.47,85.438,12.28432502]
[1773183301146,3.50219135,85.48,85.438,12.28432502]
[1773183301348,3.50219135,85.49,85.455,12.28432502]
[1773183302247,3.50219135,85.48,85.455,12.28432502]
[1773183302546,3.50219135,85.49,85.455,12.28432502]
[1773183302747,8.74845479,85.489,85.455,12.28432502]
[1773183302945,3.50219135,85.49,85.455,12.28432502]
[1773183305751,14.02919135,85.49,85.455,12.28432502]
[1773183305951,3.50219135,85.47,85.444,12.27520316]
[1773183306253,35.11,85.508,85.444,12.27520316]
[1773183306451,3.50219135,85.48,85.444,12.27520316]
[1773183308250,3.50219135,85.48,85.403,21.79026878]
[1773183308251,3.50219135,85.47,85.433,22.81136552]
[1773183308450,3.50219135,85.47,85.434,12.28519534]
[1773183308647,10.528,85.479,85.434,12.28519534]
[1773183308846,3.50219135,85.48,85.443,12.28519534]
[1773183309247,3.50219135,85.47,85.443,12.28519534]
[1773183325366,3.50219135,85.49,85.443,12.28519534]
[1773183325571,8.76726464,85.507,85.451,10.51106384]
[1773183325766,3.50219135,85.51,85.461,10.51106384]
[1773183326172,8.7661087,85.509,85.461,10.51106384]
[1773183326372,3.50219135,85.5,85.467,10.51106384]
[1773183328479,3.50219135,85.5,85.469,10.51534307]
[1773183334479,10.525,85.499,85.469,10.51534307]
[1773183335084,3.50219135,85.5,85.469,10.51534307]
[1773183336984,3.50219135,85.51,85.471,10.51323582]
[1773183338384,10.524,85.509,85.471,10.51323582]
[1773183340592,3.50219135,85.5,85.471,10.51323582]
[1773183344792,8.74923659,85.527,85.491,10.4886191]
[1773183344988,3.50219135,85.53,85.491,10.4886191]
[1773183345193,10.525,85.506,85.465,10.4886191]
[1773183345492,3.50219135,85.49,85.465,10.4886191]
[1773183346999,10.526,85.495,85.465,10.4886191]
[1773183350093,3.50268387,85.48,85.448,10.53289838]
[1773183350494,3.50268387,85.48,85.45,10.53155245]
[1773183352496,35.11,85.516,85.45,10.53155245]
[1773183352497,3.50268387,85.5,85.452,10.5493129]
[1773183353498,3.50268387,85.5,85.462,10.5493129]
[1773183354291,10.525,85.499,85.462,10.5493129]
[1773183359611,3.50268387,85.49,85.462,10.5493129]
[1773183361206,3.50268387,85.47,85.421,10.60118153]
[1773183362405,10.528,85.478,85.438,10.60358789]
[1773183363510,10.528,85.478,85.441,10.60358789]
[1773183365313,3.50268387,85.47,85.441,10.60358789]
[1773183369814,3.50268387,85.47,85.406,308.87442241]
[1773183369815,10.528,85.478,85.443,10.564645]
[1773183370113,3.50268387,85.48,85.443,10.564645]
[1773183371416,3.50268387,85.48,85.444,10.532]
[1773183371612,3.50268387,85.48,85.445,10.5877831]
[1773183376415,14.03068387,85.48,85.445,10.5877831]
[1773183384727,3.50268387,85.46,85.423,10.56196787]
[1773183384927,3.50268387,85.47,85.423,10.56196787]
[1773183385926,3.50268387,85.47,85.437,10.56196787]
[1773183386128,3.50268387,85.48,85.437,10.56196787]
[1773183388426,3.50268387,85.48,85.438,10.533]
[1773183388628,3.50268387,85.48,85.439,10.55191272]
[1773183389322,10.528,85.479,85.439,10.55191272]
[1773183390627,3.50268387,85.48,85.439,10.55191272]
[1773183391024,3.50268387,85.48,85.44,10.55467283]
[1773183392324,10.528,85.477,85.44,10.55467283]
[1773183392529,3.50268387,85.47,85.44,10.55467283]
[1773183395735,10.528,85.477,85.44,10.55467283]
[1773183396735,10.528,85.477,85.443,10.5500402]
[1773183400238,8.73522426,85.476,85.443,10.5500402]
[1773183400435,10.528,85.477,85.443,10.5500402]
[1773183400636,8.73531877,85.476,85.443,10.5500402]
[1773183400937,10.528,85.477,85.443,10.5500402]
[1773183401137,8.72407809,85.476,85.443,10.5500402]
[1773183401340,10.528,85.477,85.443,10.5500402]
[1773183401639,8.72550151,85.476,85.443,10.5500402]
[1773183401834,10.528,85.477,85.443,10.5500402]
[1773183402035,8.72550051,85.476,85.443,10.5500402]
[1773183402235,8.72709539,85.475,85.443,10.5500402]
[1773183402436,10.528,85.477,85.443,10.5500402]
[1773183402636,8.72718183,85.476,85.443,10.5500402]
[1773183402835,8.72718183,85.475,85.443,10.5500402]
[1773183403036,10.528,85.477,85.443,10.5500402]
[1773183403238,8.72718183,85.476,85.443,10.5500402]
[1773183403436,8.72718183,85.475,85.443,10.5500402]
[1773183403636,8.72718183,85.474,85.443,10.5500402]
[1773183403936,10.528,85.477,85.443,10.5500402]
[1773183404136,8.7292175,85.476,85.443,10.5500402]
[1773183404332,8.7292175,85.475,85.443,10.5500402]
[1773183404540,8.7292175,85.474,85.443,10.5500402]
[1773183404731,8.7292175,85.473,85.443,10.5500402]
[1773183404931,10.528,85.477,85.443,10.5500402]
[1773183405137,8.73181401,85.476,85.443,10.5500402]
[1773183405342,8.73181401,85.475,85.443,10.5500402]
[1773183405640,8.73181401,85.474,85.443,10.5500402]
[1773183405841,8.73181401,85.473,85.443,10.5500402]
[1773183406041,10.528,85.477,85.443,10.5500402]
[1773183406042,8.73555993,85.472,85.443,10.5500402]
[1773183406238,8.73635938,85.471,85.443,10.5500402]
[1773183406444,10.528,85.477,85.443,10.5500402]
[1773183406639,8.73635938,85.476,85.443,10.5500402]
[1773183406838,8.73635938,85.475,85.443,10.5500402]
[1773183407137,8.73635938,85.474,85.443,10.5500402]
[1773183407339,8.73635938,85.473,85.452,10.47776295]
[1773183407531,10.527,85.486,85.452,10.47776295]
[1773183407733,3.50350671,85.48,85.452,10.47776295]
[1773183407933,8.73634697,85.479,85.452,10.47776295]
[1773183408132,8.73634697,85.478,85.452,10.47776295]
[1773183408438,3.50350671,85.47,85.422,10.4777579]
[1773183409141,3.50350671,85.48,85.422,10.4777579]
[1773183409342,10.528,85.475,85.438,10.533]
[1773183409538,10.528,85.475,85.439,10.47771171]
[1773183410340,10.528,85.475,85.442,10.47771171]
[1773183417050,10.527,85.484,85.447,10.46048039]
[1773183417347,8.73633676,85.483,85.447,10.46048039]
[1773183417537,10.527,85.484,85.447,10.46048039]
[1773183417538,8.73633676,85.482,85.447,10.46048039]
[1773183417734,8.73633676,85.481,85.447,10.46048039]
[1773183417940,10.527,85.484,85.447,10.46048039]
[1773183418246,10.528,85.482,85.45,10.46048039]
[1773183419743,3.50350671,85.48,85.45,10.46048039]
[1773183419950,8.73422882,85.479,85.45,10.46048039]
[1773183420140,8.73422882,85.478,85.45,10.46048039]
[1773183420344,8.73422882,85.477,85.45,10.46048039]
[1773183420544,8.73422882,85.476,85.45,10.46048039]
[1773183420740,3.50350671,85.48,85.45,10.46048039]
[1773183421049,8.73438458,85.479,85.45,10.46048039]
[1773183421250,8.73438458,85.478,85.45,10.46048039]
[1773183421447,8.73438458,85.477,85.45,10.46048039]
[1773183421749,8.73438458,85.476,85.45,10.46048039]
[1773183421951,3.50350671,85.48,85.45,10.46048039]
[1773183422251,8.73432839,85.479,85.45,10.46048039]
[1773183422451,8.73432839,85.478,85.45,10.46048039]
[1773183422653,8.73432839,85.477,85.45,10.46048039]
[1773183422853,8.73432839,85.476,85.45,10.46048039]
[1773183423056,3.50350671,85.48,85.45,10.46048039]
[1773183423253,8.73428074,85.479,85.45,10.46048039]
[1773183423455,8.73428074,85.478,85.45,10.46048039]
[1773183423658,8.73428074,85.477,85.45,10.46048039]
[1773183423854,8.73428074,85.476,85.45,10.46048039]
[1773183424054,3.50350671,85.48,85.45,10.46048039]
[1773183424253,8.73423636,85.479,85.45,10.46048039]
[1773183424456,8.73423636,85.478,85.45,10.46048039]
[1773183424658,8.73423636,85.477,85.45,10.46048039]
[1773183424856,8.73423636,85.476,85.45,10.46048039]
[1773183425054,3.50350671,85.48,85.45,10.46048039]
[1773183425756,10.528,85.482,85.45,10.46048039]
[1773183425960,8.73315746,85.481,85.45,10.46048039]
[1773183426154,8.73315746,85.48,85.45,10.46048039]
[1773183426356,10.528,85.482,85.45,10.46048039]
[1773183426658,8.73274356,85.481,85.45,10.46048039]
[1773183426855,10.528,85.482,85.45,10.46048039]
[1773183427056,8.73274356,85.481,85.45,10.46048039]
[1773183427260,10.528,85.482,85.45,10.46048039]
[1773183427460,8.73236292,85.481,85.45,10.46048039]
[1773183427660,10.528,85.482,85.45,10.46048039]
[1773183427859,8.73236292,85.481,85.45,10.46048039]
[1773183428061,10.528,85.482,85.45,10.46048039]
[1773183428062,8.73236292,85.48,85.45,10.46048039]
[1773183428256,8.73236292,85.479,85.45,10.46048039]
[1773183428462,8.73236292,85.478,85.45,10.46048039]
[1773183428664,8.73236292,85.477,85.45,10.46048039]
[1773183428964,10.528,85.482,85.45,10.46048039]
[1773183429161,8.73292638,85.481,85.45,10.46048039]
[1773183429362,12.23643309,85.48,85.45,10.46048039]
[1773183429564,8.73292638,85.479,85.45,10.46048039]
[1773183429863,8.73292638,85.478,85.45,10.46048039]
[1773183430063,8.73292638,85.477,85.45,10.46048039]
[1773183430263,3.50350671,85.48,85.45,10.46048039]
[1773183430460,8.73293304,85.479,85.45,10.46048039]
[1773183430662,8.73293304,85.478,85.45,10.46048039]
[1773183430864,8.73293304,85.477,85.45,10.46048039]
[1773183431064,3.50350671,85.48,85.45,10.46048039]
[1773183431262,8.72825344,85.479,85.45,10.46048039]
[1773183431464,8.72825344,85.478,85.45,10.46048039]
[1773183431662,8.72825344,85.477,85.45,10.46048039]
[1773183431965,3.50350671,85.48,85.45,10.46048039]
[1773183432163,8.72825402,85.479,85.45,10.46048039]
[1773183432358,8.72825402,85.478,85.45,10.46048039]
[1773183432562,8.72825402,85.477,85.45,10.46048039]
[1773183432761,3.50350671,85.48,85.45,10.46048039]
[1773183432959,8.72825789,85.479,85.45,10.46048039]
[1773183433159,8.72825789,85.478,85.45,10.46048039]
[1773183433363,8.72825789,85.477,85.45,10.46048039]
[1773183433665,3.50350671,85.48,85.45,10.46048039]
[1773183433860,8.72834677,85.479,85.45,10.46048039]
[1773183434062,8.72834677,85.478,85.45,10.46048039]
[1773183434261,8.72834677,85.477,85.45,10.46048039]
[1773183434458,3.50350671,85.48,85.45,10.46048039]
[1773183434665,8.72844548,85.479,85.45,10.46048039]
[1773183434866,8.72844548,85.478,85.451,10.531]
[1773183435062,8.72844548,85.477,85.451,10.531]
[1773183435262,3.50350671,85.48,85.451,10.531]
[1773183435462,8.72855397,85.479,85.451,10.531]
[1773183435665,8.72855397,85.478,85.451,10.531]
[1773183435963,8.72855397,85.477,85.451,10.531]
[1773183436165,10.528,85.482,85.451,10.531]
[1773183436366,8.72862207,85.481,85.451,10.531]
[1773183436566,8.72862207,85.48,85.451,10.531]
[1773183436763,8.72862207,85.479,85.451,10.531]
[1773183436964,10.528,85.477,85.443,10.532]
[1773183437266,3.50350671,85.47,85.435,10.48453082]
[1773183437468,3.50350671,85.48,85.435,10.48453082]
[1773183437664,8.72872047,85.479,85.435,10.48453082]
[1773183437864,8.72872047,85.478,85.435,10.48453082]
[1773183438064,8.72872047,85.477,85.435,10.48453082]
[1773183438263,8.72872047,85.476,85.437,10.48453082]
[1773183438565,10.528,85.478,85.437,10.48453082]
[1773183438766,8.72880979,85.477,85.437,10.48453082]
[1773183438965,8.72880979,85.476,85.437,10.48453082]
[1773183439167,10.528,85.478,85.437,10.48453082]
[1773183439362,8.72895995,85.477,85.44,10.48435881]
[1773183439559,8.72895995,85.476,85.44,10.48435881]
[1773183439765,10.528,85.478,85.44,10.48435881]
[1773183439967,8.72895995,85.477,85.44,10.48435881]
[1773183440166,8.72895995,85.476,85.44,10.48435881]
[1773183440367,10.528,85.478,85.444,10.48438131]
[1773183440570,8.72913026,85.477,85.444,10.48438131]
[1773183440767,8.72913026,85.476,85.444,10.48438131]
[1773183440969,10.528,85.478,85.444,10.48438131]
[1773183441268,8.72913026,85.477,85.444,10.48438131]
[1773183441467,8.72913026,85.476,85.444,10.48438131]
[1773183441669,10.528,85.478,85.444,10.48438131]
[1773183441868,8.72931464,85.477,85.444,10.48438131]
[1773183442172,8.72931464,85.476,85.444,10.48438131]
[1773183442372,10.527,85.485,85.446,10.49063389]
[1773183442567,8.72890715,85.484,85.446,10.49063389]
[1773183442871,8.72890715,85.483,85.446,10.49063389]
[1773183443071,8.72890715,85.482,85.446,10.49063389]
[1773183443269,8.72890715,85.481,85.446,10.49063389]
[1773183443468,10.527,85.485,85.448,10.49160376]
[1773183443670,8.72885378,85.484,85.448,10.49160376]
[1773183443970,8.72885378,85.483,85.448,10.49160376]
[1773183444274,8.72885378,85.482,85.448,10.49160376]
[1773183444472,8.72885378,85.481,85.448,10.49160376]
[1773183444669,10.527,85.485,85.448,10.49160376]
[1773183444865,8.72884754,85.484,85.448,10.49160376]
[1773183445071,8.72884754,85.483,85.448,10.49160376]
[1773183445270,8.72884754,85.482,85.448,10.49160376]
[1773183445473,8.72884754,85.481,85.448,10.49160376]
[1773183445672,8.72888805,85.48,85.448,10.49160376]
[1773183445974,10.527,85.485,85.448,10.49160376]
[1773183446176,8.728888,85.484,85.448,10.49160376]
[1773183446375,8.728888,85.483,85.448,10.49160376]
[1773183446576,8.728888,85.482,85.448,10.49160376]
[1773183446876,8.728888,85.481,85.448,10.49160376]
[1773183447073,8.728888,85.48,85.448,10.49160376]
[1773183447276,3.50350671,85.47,85.436,10.49466254]
[1773183447574,3.50350671,85.48,85.436,10.49466254]
[1773183447775,8.72983753,85.479,85.436,10.49466254]
[1773183447976,8.72983753,85.478,85.436,10.49466254]
[1773183448170,3.50350671,85.48,85.436,10.49466254]
[1773183448171,8.72983753,85.477,85.436,10.49466254]
[1773183448372,19.25783753,85.476,85.436,10.49466254]
[1773183448578,10.528,85.476,85.436,10.49466254]
[1773183449478,10.528,85.476,85.439,10.4892569]
[1773183450775,3.50350671,85.48,85.414,21.79026878]
[1773183450975,3.50350671,85.46,85.428,10.48655443]
[1773183453080,3.50350671,85.46,85.429,10.534]
[1773183453272,10.529,85.468,85.43,10.47355639]
[1773183453678,8.7304375,85.467,85.43,10.47355639]
[1773183453976,10.529,85.468,85.43,10.47355639]
[1773183454280,10.529,85.468,85.421,10.47355639]
[1773183454483,3.50350671,85.46,85.421,10.47355639]
[1773183455184,3.50350671,85.47,85.43,10.4857591]
[1773183455484,10.529,85.473,85.43,10.4857591]
[1773183456481,10.529,85.473,85.433,10.4859285]
[1773183456980,3.50350671,85.47,85.433,10.4859285]
[1773183457184,8.72794294,85.469,85.433,10.4859285]
[1773183457382,3.50350671,85.47,85.433,10.4859285]
[1773183457579,8.72721595,85.469,85.433,10.4859285]
[1773183457781,3.50350671,85.47,85.433,10.4859285]
[1773183457981,8.72721262,85.469,85.433,10.4859285]
[1773183458281,3.50350671,85.47,85.433,10.4859285]
[1773183458483,3.50350671,85.47,85.434,10.533]
[1773183458684,3.50350671,85.47,85.435,10.47813369]
[1773183460988,8.78365724,85.469,85.435,10.47813369]
[1773183461190,10.88124958,85.489,85.437,10.47813911]
[1773183461485,3.50350671,85.48,85.437,10.47813911]
[1773183461787,8.78316619,85.479,85.437,10.47813911]
[1773183461988,8.78316619,85.478,85.437,10.47813911]
[1773183462189,8.78316619,85.477,85.437,10.47813911]
[1773183462389,8.78316619,85.476,85.444,10.47813911]
[1773183462585,8.78316619,85.475,85.444,10.47813911]
[1773183462789,8.78316619,85.474,85.444,10.47813911]
[1773183462990,8.78316619,85.473,85.444,10.47813911]
[1773183463189,3.50350671,85.48,85.444,10.47813911]
[1773183463404,8.78279856,85.479,85.444,10.47813911]
[1773183463589,8.78279856,85.478,85.444,10.47813911]
[1773183463790,8.78279856,85.477,85.444,10.47813911]
[1773183463989,8.78279856,85.476,85.444,10.47813911]
[1773183464189,8.78279856,85.475,85.444,10.47813911]
[1773183464391,8.78279856,85.474,85.444,10.47813911]
[1773183464696,8.78279856,85.473,85.444,10.47813911]
[1773183464897,10.88124958,85.493,85.447,10.48482792]
[1773183465199,3.50350671,85.48,85.447,10.48482792]
[1773183465391,8.78315271,85.479,85.447,10.48482792]
[1773183465695,8.78315271,85.478,85.447,10.48482792]
[1773183465895,3.50350671,85.48,85.447,10.48482792]
[1773183465896,8.78315271,85.477,85.447,10.48482792]
[1773183466195,8.78315271,85.476,85.447,10.48482792]
[1773183466397,8.78315271,85.475,85.447,10.48482792]
[1773183466592,8.78315271,85.474,85.447,10.48482792]
[1773183466792,8.78315271,85.473,85.447,10.48482792]
[1773183466993,3.50350671,85.48,85.447,10.48482792]
[1773183467195,8.78320407,85.479,85.447,10.48482792]
[1773183467396,8.78320407,85.478,85.447,10.48482792]
[1773183467693,8.78320407,85.477,85.447,10.48482792]
[1773183467893,8.78320407,85.476,85.447,10.48482792]
[1773183468092,8.78320407,85.475,85.447,10.48482792]
[1773183468293,8.78320407,85.474,85.447,10.48482792]
[1773183468494,8.78320407,85.473,85.447,10.48482792]
[1773183468695,3.50350671,85.48,85.447,10.48482792]
[1773183468895,8.78315607,85.479,85.447,10.48482792]
[1773183469102,8.78315607,85.478,85.447,10.48482792]
[1773183469400,3.50350671,85.47,85.438,21.06155452]
[1773183469600,3.50462006,85.47,85.439,10.52855406]
[1773183470499,10.528,85.478,85.439,10.52855406]
[1773183470702,8.78338941,85.477,85.439,10.52855406]
[1773183470899,8.78338941,85.476,85.439,10.52855406]
[1773183471193,8.78338941,85.475,85.439,10.52855406]
[1773183471398,8.78338941,85.474,85.441,10.53437369]
[1773183471598,8.78338941,85.473,85.441,10.53437369]
[1773183471799,10.528,85.478,85.441,10.53437369]
[1773183471994,8.78368254,85.477,85.444,10.53437369]
[1773183472301,8.78368254,85.476,85.444,10.53437369]
[1773183472499,8.78368254,85.475,85.444,10.53437369]
[1773183472701,8.78368254,85.474,85.444,10.53437369]
[1773183472900,8.78368254,85.473,85.444,10.53437369]
[1773183473100,10.528,85.478,85.444,10.53437369]